fUST/lending_fUST_20251002
["ID","MTS","AMOUNT","RATE_DAILY","PERIOD"]
[388745755,1759345862608,-1983.88,0.00021643,2]
[388745756,1759345862617,-535.15,0.00021643,2]
[388745757,1759345862626,-1023.11,0.00021643,2]
[388745758,1759345862637,-500.0,0.00021643,2]
[388745759,1759345862646,-500.0,0.00021643,2]
[388745760,1759345862655,-266.07,0.00021643,2]
[388745761,1759345862663,-465.42,0.00021643,2]
[388745762,1759345862673,-503.32431461,0.00021643,2]
[388745763,1759345862682,-500.0,0.00021643,2]
[388745764,1759345862691,-393.44,0.00021643,2]
[388745765,1759345862699,-500.0,0.00021643,2]
[388745766,1759345862708,-500.0,0.00021643,2]
[388745767,1759345862717,-500.0,0.00021643,2]
[388745768,1759345862726,-500.0,0.00021643,2]
[388745769,1759345862735,-500.0,0.00021643,2]
[388745770,1759345862744,-500.0,0.00021643,2]
[388745771,1759345862753,-460.0,0.00021643,2]
[388745772,1759345862762,-500.0,0.00021643,2]
[388745773,1759345862772,-851.24,0.00021643,2]
[388745774,1759345862781,-639.55,0.00021643,2]
[388745775,1759345862790,-900.38,0.00021643,2]
[388745776,1759345862800,-1628.15,0.00021643,2]
[388745777,1759345862810,-500.0,0.00021643,2]
[388745778,1759345862819,-500.0,0.00021643,2]
[388745779,1759345862828,-500.0,0.00021643,2]
[388745780,1759345862838,-505.58,0.00021643,2]
[388745781,1759345862847,-506.9,0.00021643,2]
[388745782,1759345862855,-4193.03,0.00021643,2]
[388745783,1759345862864,-500.0,0.00021643,2]
[388745784,1759345862873,-500.0,0.00021643,2]
[388745785,1759345862882,-500.0,0.00021643,2]
[388745786,1759345862893,-821.39,0.00021643,2]
[388745787,1759345862902,-500.0,0.00021643,2]
[388745788,1759345862911,-500.0,0.00021643,2]
[388745789,1759345862920,-500.0,0.00021643,2]
[388745790,1759345862929,-500.0,0.00021643,2]
[388745791,1759345862938,-500.0,0.00021643,2]
[388745792,1759345862948,-1383.14,0.00021643,2]
[388745793,1759345862962,-711.82,0.00021643,2]
[388745794,1759345862971,-532.13,0.00021643,2]
[388745795,1759345862980,-500.0,0.00021643,2]
[388745796,1759345862990,-608.21,0.00021643,2]
[388745797,1759345862999,-500.0,0.00021643,2]
[388745798,1759345863009,-500.0,0.00021643,2]
[388745799,1759345863019,-500.0,0.00021643,2]
[388745800,1759345863029,-635.96,0.00021643,2]
[388745801,1759345863038,-500.0,0.00021643,2]
[388745802,1759345863047,-792.22,0.00021643,2]
[388745803,1759345863057,-500.0,0.00021643,2]
[388745804,1759345863067,-628.21,0.00021643,2]
[388745805,1759345863076,-582.97,0.00021643,2]
[388745806,1759345863086,-500.0,0.00021643,2]
[388745807,1759345863095,-500.0,0.00021643,2]
[388745808,1759345863104,-500.0,0.00021643,2]
[388745809,1759345863114,-2142.58,0.00021643,2]
[388745810,1759345863123,-1256.62,0.00021643,2]
[388745811,1759345863133,-500.0,0.00021643,2]
[388745812,1759345863143,-1512.08,0.00021643,2]
[388745813,1759345863154,-546.5,0.00021643,2]
[388745814,1759345863164,-500.0,0.00021643,2]
[388745815,1759345863173,-500.0,0.00021643,2]
[388745816,1759345863183,-500.0,0.00021643,2]
[388745817,1759345863192,-2196.15,0.00021643,2]
[388745818,1759345863201,-439.39,0.00021643,2]
[388745819,1759345863211,-1290.67,0.00021643,2]
[388745820,1759345863219,-1119.5,0.00021643,2]
[388745821,1759345863229,-500.0,0.00021643,2]
[388745822,1759345863239,-500.0,0.00021643,2]
[388745823,1759345863249,-569.29,0.00021643,2]
[388745824,1759345863258,-714.51,0.00021643,2]
[388745825,1759345863267,-796.49,0.00021643,2]
[388745826,1759345863276,-1648.24,0.00021643,2]
[388745827,1759345863285,-500.0,0.00021643,2]
[388745828,1759345863295,-1155.6,0.00021643,2]
[388745829,1759345863304,-500.0,0.00021643,2]
[388745830,1759345863313,-500.0,0.00021643,2]
[388745831,1759345863322,-154.450076,0.00021644,2]
[388745832,1759345863333,-2500.0,0.00021664,2]
[388745833,1759345863343,-600.0,0.00021712,2]
[388745834,1759345863352,-360.0,0.00021721,2]
[388745835,1759345863362,-154.450076,0.00021758,3]
[388745836,1759345863371,-2020.81292886,0.00021778,2]
[388745837,1759345863380,-755.0,0.00021796,2]
[388745838,1759345863390,-151.0,0.000218,3]
[388745839,1759345863399,-8883.11687775,0.00021814,2]
[388745840,1759345863409,-755.0,0.00021833,2]
[388745841,1759345863419,-755.0,0.00021895,2]
[388745842,1759345863429,-755.0,0.00021912,2]
[388745843,1759345863439,-381.9099482,0.00021917,2]
[388745844,1759345863448,-267.18,0.00021917,2]
[388745845,1759345863459,-749.67,0.00021917,2]
[388745846,1759345863468,-500.0,0.00021917,2]
[388745847,1759345863478,-500.0,0.00021917,2]
[388745848,1759345863488,-500.0,0.00021917,2]
[388745849,1759345863497,-440.38,0.00021917,2]
[388745850,1759345863507,-500.0,0.00021917,2]
[388745851,1759345863516,-500.0,0.00021917,2]
[388745852,1759345863525,-613.57,0.00021917,2]
[388745853,1759345863536,-771.43,0.00021917,2]
[388745854,1759345863545,-500.0,0.00021917,2]
[388745855,1759345863554,-500.0,0.00021917,2]
[388745856,1759345863564,-500.0,0.00021917,2]
[388745857,1759345863574,-500.0,0.00021917,2]
[388745858,1759345863584,-500.0,0.00021917,2]
[388745859,1759345863593,-500.0,0.00021917,2]
[388745860,1759345863603,-500.0,0.00021917,2]
[388745861,1759345863612,-500.0,0.00021917,2]
[388745862,1759345863622,-500.0,0.00021917,2]
[388745863,1759345863631,-500.0,0.00021917,2]
[388745864,1759345863642,-500.0,0.00021917,2]
[388745865,1759345863651,-500.0,0.00021917,2]
[388745866,1759345863660,-500.0,0.00021917,2]
[388745867,1759345863670,-500.0,0.00021917,2]
[388745868,1759345863680,-500.0,0.00021917,2]
[388745869,1759345863689,-500.0,0.00021917,2]
[388745870,1759345863699,-500.0,0.00021917,2]
[388745871,1759345863709,-672.22,0.00021917,2]
[388745872,1759345863718,-500.0,0.00021917,2]
[388745873,1759345863727,-500.0,0.00021917,2]
[388745874,1759345863736,-500.0,0.00021917,2]
[388745875,1759345863746,-380.41854206,0.00021917,2]
[388745876,1759345863755,-500.0,0.00021917,2]
[388745877,1759345863765,-500.0,0.00021917,2]
[388745878,1759345863774,-500.0,0.00021917,2]
[388745879,1759345863783,-901.59,0.00021917,2]
[388745880,1759345863792,-500.0,0.00021917,2]
[388745881,1759345863801,-564.15029908,0.00021917,2]
[388745882,1759345863811,-151.0,0.00021917,2]
[388745883,1759345863820,-500.0,0.00021917,2]
[388745884,1759345863830,-500.0,0.00021917,2]
[388745885,1759345863840,-500.0,0.00021917,2]
[388745886,1759345863850,-890.47,0.00021917,2]
[388745887,1759345863859,-500.0,0.00021917,2]
[388745888,1759345863870,-500.0,0.00021917,2]
[388745889,1759345863879,-500.0,0.00021917,2]
[388745890,1759345863888,-500.0,0.00021917,2]
[388745891,1759345863897,-192.87385897,0.00021917,2]
[388745892,1759345863906,-500.0,0.00021917,2]
[388745893,1759345863915,-500.0,0.00021917,2]
[388745894,1759345863925,-1983.88,0.00021917,2]
[388745895,1759345863934,-535.15,0.00021917,2]
[388745896,1759345863944,-1023.11,0.00021917,2]
[388745897,1759345863954,-500.0,0.00021917,2]
[388745898,1759345863966,-573.05,0.00021917,2]
[388745899,1759345863975,-500.0,0.00021917,2]
[388745900,1759345863985,-500.0,0.00021917,2]
[388745901,1759345863993,-174.81956706,0.00021917,2]
[388745902,1759345864004,-500.0,0.00021917,2]
[388745903,1759345864013,-500.0,0.00021917,2]
[388745904,1759345864022,-500.0,0.00021917,2]
[388745905,1759345864033,-500.0,0.00021917,2]
[388745906,1759345864042,-500.0,0.00021917,2]
[388745907,1759345864051,-851.24,0.00021917,2]
[388745908,1759345864061,-639.55,0.00021917,2]
[388745909,1759345864071,-900.38,0.00021917,2]
[388745910,1759345864080,-1628.15,0.00021917,2]
[388745911,1759345864089,-500.0,0.00021917,2]
[388745912,1759345864098,-500.0,0.00021917,2]
[388745913,1759345864108,-500.0,0.00021917,2]
[388745914,1759345864117,-505.58,0.00021917,2]
[388745915,1759345864223,-4193.03,0.00021917,2]
[388745916,1759345864232,-500.0,0.00021917,2]
[388745917,1759345864242,-500.0,0.00021917,2]
[388745918,1759345864251,-500.0,0.00021917,2]
[388745919,1759345864260,-821.39,0.00021917,2]
[388745920,1759345864269,-500.0,0.00021917,2]
[388745921,1759345864279,-500.0,0.00021917,2]
[388745922,1759345864289,-291.81,0.00021917,2]
[388745923,1759345864297,-500.0,0.00021917,2]
[388745924,1759345864306,-500.0,0.00021917,2]
[388745925,1759345864316,-1383.14,0.00021917,2]
[388745926,1759345864326,-711.82,0.00021917,2]
[388745927,1759345864335,-532.13,0.00021917,2]
[388745928,1759345864343,-500.0,0.00021917,2]
[388745929,1759345864352,-608.21,0.00021917,2]
[388745930,1759345864362,-227.88,0.00021917,2]
[388745931,1759345864371,-500.0,0.00021917,2]
[388745932,1759345864381,-500.0,0.00021917,2]
[388745933,1759345864391,-792.22,0.00021917,2]
[388745934,1759345864401,-500.0,0.00021917,2]
[388745935,1759345864410,-500.0,0.00021917,2]
[388745936,1759345864419,-628.21,0.00021917,2]
[388745937,1759345864428,-582.97,0.00021917,2]
[388745938,1759345864437,-500.0,0.00021917,2]
[388745939,1759345864447,-500.0,0.00021917,2]
[388745940,1759345864456,-500.0,0.00021917,2]
[388745941,1759345864465,-2142.58,0.00021917,2]
[388745942,1759345864475,-1256.62,0.00021917,2]
[388745943,1759345864485,-500.0,0.00021917,2]
[388745944,1759345864494,-1512.08,0.00021917,2]
[388745945,1759345864503,-500.0,0.00021917,2]
[388745946,1759345864512,-500.0,0.00021917,2]
[388745947,1759345864522,-500.0,0.00021917,2]
[388745948,1759345864531,-2196.15,0.00021917,2]
[388745949,1759345864540,-1290.67,0.00021917,2]
[388745950,1759345864549,-1119.5,0.00021917,2]
[388745951,1759345864558,-500.0,0.00021917,2]
[388745952,1759345864568,-500.0,0.00021917,2]
[388745953,1759345864577,-569.29,0.00021917,2]
[388745954,1759345864586,-714.51,0.00021917,2]
[388745955,1759345864595,-796.49,0.00021917,2]
[388745956,1759345864605,-1648.24,0.00021917,2]
[388745957,1759345864614,-151.0,0.00021917,2]
[388745958,1759345864623,-205.931712,0.00021917,2]
[388745959,1759345864632,-590.03,0.00021917,2]
[388745960,1759345864641,-1155.6,0.00021917,2]
[388745961,1759345864650,-151.0,0.00021917,2]
[388745962,1759345864659,-500.0,0.00021917,2]
[388745963,1759345864668,-500.0,0.00021917,2]
[388745964,1759345864677,-151.0,0.00021918,2]
[388745965,1759345864686,-151.0,0.00021918,2]
[388745966,1759345864696,-152.004238,0.00021918,2]
[388745967,1759345864706,-276.728226,0.00021918,2]
[388745968,1759345864715,-276.728226,0.00021918,2]
[388745969,1759345864725,-276.728226,0.00021918,2]
[388745970,1759345864735,-276.728226,0.00021918,2]
[388745971,1759345864744,-276.728226,0.00021918,2]
[388745972,1759345864753,-276.728226,0.00021918,2]
[388745973,1759345864763,-276.728226,0.00021918,2]
[388745974,1759345864772,-276.728226,0.00021918,2]
[388745975,1759345864782,-276.728226,0.00021918,2]
[388745976,1759345864791,-276.728226,0.00021918,2]
[388745977,1759345864800,-276.728226,0.00021918,2]
[388745978,1759345864810,-276.728226,0.00021918,2]
[388745979,1759345864820,-276.728226,0.00021918,2]
[388745980,1759345864830,-276.728226,0.00021918,2]
[388745981,1759345864839,-276.728226,0.00021918,2]
[388745982,1759345864848,-276.728226,0.00021918,2]
[388745983,1759345864859,-400.0,0.00021918,2]
[388745984,1759345864868,-150.0,0.00021918,2]
[388745985,1759345864878,-150.0,0.00021918,2]
[388745986,1759345864888,-150.0,0.00021918,2]
[388745987,1759345864898,-150.0,0.00021918,2]
[388745988,1759345864908,-150.0,0.00021918,2]
[388745989,1759345864917,-150.0,0.00021918,2]
[388745990,1759345864927,-150.0,0.00021918,2]
[388745991,1759345864936,-150.0,0.00021918,2]
[388745992,1759345864945,-150.0,0.00021918,2]
[388745993,1759345864958,-150.0,0.00021918,2]
[388745994,1759345864968,-150.0,0.00021918,2]
[388745995,1759345864977,-150.0,0.00021918,2]
[388745996,1759345864987,-150.0,0.00021918,2]
[388745997,1759345864996,-150.0,0.00021918,2]
[388745998,1759345865006,-150.0,0.00021918,2]
[388745999,1759345865016,-150.0,0.00021918,2]
[388746000,1759345865026,-150.0,0.00021918,2]
[388746001,1759345865035,-150.0,0.00021918,2]
[388746002,1759345865045,-150.0,0.00021918,2]
[388746003,1759345865054,-150.0,0.00021918,2]
[388746004,1759345865063,-150.0,0.00021918,2]
[388746005,1759345865072,-150.0,0.00021918,2]
[388746006,1759345865082,-151.82940044,0.00021918,2]
[388746007,1759345865091,-755.0,0.00021939,2]
[388746008,1759345865101,-2500.0,0.00021964,2]
[388746009,1759345865112,-1510.84702351,0.00021964,2]
[388746010,1759345865121,-2500.0,0.00021964,2]
[388746011,1759345865131,-376.44418485,0.00021969,2]
[388746012,1759345865141,-8402.89,0.00022,2]
[388746013,1759345865150,-180.0,0.00022,2]
[388746014,1759345865159,-288.0,0.00022,2]
[388746015,1759345865169,-4000.0,0.00022,4]
[388746016,1759345865179,-755.0,0.00022034,2]
[388746017,1759345865188,-410.0,0.00022074,2]
[388746018,1759345865198,-428.711,0.00022074,2]
[388746019,1759345865207,-5030.0,0.00022074,2]
[388746020,1759345865216,-273.33965458,0.00022125,2]
[388746021,1759345865227,-1500.0,0.00022125,2]
[388746022,1759345865236,-500.0,0.00022125,2]
[388746023,1759345865247,-1500.0,0.00022164,2]
[388746024,1759345865257,-702.87362549,0.00022164,2]
[388746025,1759345865267,-977.2590813,0.00022164,2]
[388746026,1759345865276,-1500.0,0.00022164,2]
[388746027,1759345865286,-500.0,0.00022164,2]
[388746028,1759345865295,-500.0,0.00022164,2]
[388746029,1759345865305,-1505.65428877,0.00022164,2]
[388746030,1759345865314,-2444.69863306,0.00022164,2]
[388746031,1759345865324,-749.67,0.00022191,2]
[388746032,1759345865334,-447.14394315,0.00022191,2]
[388746033,1759345865344,-613.57,0.00022191,2]
[388746034,1759345865353,-771.43,0.00022191,2]
[388746035,1759345865363,-500.0,0.00022191,2]
[388746036,1759345865371,-500.0,0.00022191,2]
[388746037,1759345865382,-500.0,0.00022191,2]
[388746038,1759345865392,-500.0,0.00022191,2]
[388746039,1759345865402,-500.0,0.00022191,2]
[388746040,1759345865412,-172.04906,0.00022191,7]
[388746041,1759345865421,-172.04906,0.00022191,7]
[388746042,1759345865430,-172.04906,0.00022191,7]
[388746043,1759345865440,-172.04906,0.00022191,7]
[388746044,1759345865450,-672.22,0.00022191,2]
[388746045,1759345865459,-500.0,0.00022191,2]
[388746046,1759345865468,-500.0,0.00022191,2]
[388746047,1759345865477,-500.0,0.00022191,2]
[388746048,1759345865486,-500.0,0.00022191,2]
[388746049,1759345865496,-901.59,0.00022191,2]
[388746050,1759345865505,-500.0,0.00022191,2]
[388746051,1759345865514,-500.0,0.00022191,2]
[388746052,1759345865524,-392.61,0.00022191,2]
[388746053,1759345865534,-890.47,0.00022191,2]
[388746054,1759345865543,-500.0,0.00022191,2]
[388746055,1759345865552,-1983.88,0.00022191,2]
[388746056,1759345865562,-535.15,0.00022191,2]
[388746057,1759345865571,-1023.11,0.00022191,2]
[388746058,1759345865580,-598.05,0.00022191,2]
[388746059,1759345865590,-500.0,0.00022191,2]
[388746060,1759345865599,-500.0,0.00022191,2]
[388746061,1759345865608,-851.24,0.00022191,2]
[388746062,1759345865618,-639.55,0.00022191,2]
[388746063,1759345865627,-900.38,0.00022191,2]
[388746064,1759345865636,-1628.15,0.00022191,2]
[388746065,1759345865646,-500.0,0.00022191,2]
[388746066,1759345865655,-500.0,0.00022191,2]
[388746067,1759345865664,-500.0,0.00022191,2]
[388746068,1759345865673,-505.58,0.00022191,2]
[388746069,1759345865682,-4193.03,0.00022191,2]
[388746070,1759345865691,-500.0,0.00022191,2]
[388746071,1759345865699,-532.76,0.00022191,2]
[388746072,1759345865708,-500.0,0.00022191,2]
[388746073,1759345865717,-821.39,0.00022191,2]
[388746074,1759345865726,-500.0,0.00022191,2]
[388746075,1759345865735,-500.0,0.00022191,2]
[388746076,1759345865744,-500.0,0.00022191,2]
[388746077,1759345865754,-1383.14,0.00022191,2]
[388746078,1759345865764,-711.82,0.00022191,2]
[388746079,1759345865773,-276.728226,0.00022191,7]
[388746080,1759345865781,-532.13,0.00022191,2]
[388746081,1759345865791,-276.728226,0.00022191,7]
[388746082,1759345865800,-276.728226,0.00022191,7]
[388746083,1759345865810,-276.728236,0.00022191,7]
[388746084,1759345865820,-151.0,0.00022191,7]
[388746085,1759345865829,-341.975598,0.00022191,7]
[388746086,1759345865839,-151.0,0.00022191,7]
[388746087,1759345865849,-608.21,0.00022191,2]
[388746088,1759345865859,-341.975598,0.00022191,7]
[388746089,1759345865868,-151.0,0.00022191,7]
[388746090,1759345865877,-341.975598,0.00022191,7]
[388746091,1759345865886,-341.975597,0.00022191,7]
[388746092,1759345865896,-500.0,0.00022191,2]
[388746093,1759345865905,-500.0,0.00022191,2]
[388746094,1759345865915,-792.22,0.00022191,2]
[388746095,1759345865925,-500.0,0.00022191,2]
[388746096,1759345865936,-628.21,0.00022191,2]
[388746097,1759345865945,-582.97,0.00022191,2]
[388746098,1759345865964,-500.0,0.00022191,2]
[388746099,1759345865973,-500.0,0.00022191,2]
[388746100,1759345865983,-500.0,0.00022191,2]
[388746101,1759345865993,-2142.58,0.00022191,2]
[388746102,1759345866004,-1256.62,0.00022191,2]
[388746103,1759345866014,-500.0,0.00022191,2]
[388746104,1759345866023,-1512.08,0.00022191,2]
[388746105,1759345866033,-500.0,0.00022191,2]
[388746106,1759345866043,-500.0,0.00022191,2]
[388746107,1759345866052,-2196.15,0.00022191,2]
[388746108,1759345866061,-1290.67,0.00022191,2]
[388746109,1759345866071,-1119.5,0.00022191,2]
[388746110,1759345866081,-500.0,0.00022191,2]
[388746111,1759345866090,-500.0,0.00022191,2]
[388746112,1759345866100,-183.032811,0.00022191,7]
[388746113,1759345866110,-183.032811,0.00022191,7]
[388746114,1759345866120,-183.032811,0.00022191,7]
[388746115,1759345866132,-569.29,0.00022191,2]
[388746116,1759345866145,-183.032815,0.00022191,7]
[388746117,1759345866155,-714.51,0.00022191,2]
[388746118,1759345866164,-796.49,0.00022191,2]
[388746119,1759345866265,-1648.24,0.00022191,2]
[388746120,1759345866275,-1155.6,0.00022191,2]
[388746121,1759345866283,-500.0,0.00022191,2]
[388746122,1759345866293,-500.0,0.00022191,2]
[388746123,1759345866302,-3000.0,0.00022212,2]
[388746124,1759345866311,-151.0,0.00022219,7]
[388746125,1759345866320,-258.791672,0.00022219,7]
[388746126,1759345866330,-255.0,0.00022219,6]
[388746127,1759345866339,-900.0,0.0002226,2]
[388746128,1759345866347,-460.0,0.00022269,2]
[388746129,1759345866357,-755.0,0.00022342,2]
[388746130,1759345866366,-755.0,0.0002243,2]
[388746131,1759345866375,-755.0,0.00022457,2]
[388746132,1759345866384,-749.67,0.00022465,2]
[388746133,1759345866395,-613.57,0.00022465,2]
[388746134,1759345866404,-771.43,0.00022465,2]
[388746135,1759345866413,-376.36,0.00022465,2]
[388746136,1759345866422,-500.0,0.00022465,2]
[388746137,1759345866431,-205.27196827,0.00022465,2]
[388746138,1759345866440,-500.0,0.00022465,2]
[388746139,1759345866449,-173.52,0.00022465,2]
[388746140,1759345866459,-672.22,0.00022465,2]
[388746141,1759345866470,-500.0,0.00022465,2]
[388746142,1759345866479,-571.3,0.00022465,2]
[388746143,1759345866488,-583.93194886,0.00022465,2]
[388746144,1759345866497,-222.76,0.00022465,2]
[388746145,1759345866506,-901.59,0.00022465,2]
[388746146,1759345866515,-500.0,0.00022465,2]
[388746147,1759345866524,-500.0,0.00022465,2]
[388746148,1759345866533,-890.47,0.00022465,2]
[388746149,1759345866542,-1983.88,0.00022465,2]
[388746150,1759345866551,-535.15,0.00022465,2]
[388746151,1759345866560,-1023.11,0.00022465,2]
[388746152,1759345866569,-500.0,0.00022465,2]
[388746153,1759345866579,-851.24,0.00022465,2]
[388746154,1759345866588,-639.55,0.00022465,2]
[388746155,1759345866598,-900.38,0.00022465,2]
[388746156,1759345866607,-1628.15,0.00022465,2]
[388746157,1759345866616,-500.0,0.00022465,2]
[388746158,1759345866627,-500.0,0.00022465,2]
[388746159,1759345866636,-500.0,0.00022465,2]
[388746160,1759345866647,-505.58,0.00022465,2]
[388746161,1759345866656,-4193.03,0.00022465,2]
[388746162,1759345866665,-500.0,0.00022465,2]
[388746163,1759345866679,-500.0,0.00022465,2]
[388746164,1759345866688,-821.39,0.00022465,2]
[388746165,1759345866697,-480.0,0.00022465,2]
[388746166,1759345866707,-500.0,0.00022465,2]
[388746167,1759345866716,-523.38,0.00022465,2]
[388746168,1759345866725,-1383.14,0.00022465,2]
[388746169,1759345866736,-711.82,0.00022465,2]
[388746170,1759345866745,-532.13,0.00022465,2]
[388746171,1759345866754,-608.21,0.00022465,2]
[388746172,1759345866763,-500.0,0.00022465,2]
[388746173,1759345866772,-792.22,0.00022465,2]
[388746174,1759345866782,-500.0,0.00022465,2]
[388746175,1759345866792,-628.21,0.00022465,2]
[388746176,1759345866807,-582.97,0.00022465,2]
[388746177,1759345866816,-288.76,0.00022465,2]
[388746178,1759345866829,-500.0,0.00022465,2]
[388746179,1759345866841,-500.0,0.00022465,2]
[388746180,1759345866850,-2142.58,0.00022465,2]
[388746181,1759345866859,-1256.62,0.00022465,2]
[388746182,1759345866871,-500.0,0.00022465,2]
[388746183,1759345866880,-1512.08,0.00022465,2]
[388746184,1759345866892,-2196.15,0.00022465,2]
[388746185,1759345866901,-1290.67,0.00022465,2]
[388746186,1759345866911,-1119.5,0.00022465,2]
[388746187,1759345866921,-500.0,0.00022465,2]
[388746188,1759345866932,-500.0,0.00022465,2]
[388746189,1759345866942,-569.29,0.00022465,2]
[388746190,1759345866951,-714.51,0.00022465,2]
[388746191,1759345866966,-796.49,0.00022465,2]
[388746192,1759345866975,-1648.24,0.00022465,2]
[388746193,1759345866985,-1155.6,0.00022465,2]
[388746194,1759345866996,-500.0,0.00022465,2]
[388746195,1759345867006,-150.0,0.00022466,2]
[388746196,1759345867015,-979.0,0.00022466,2]
[388746197,1759345867025,-2156.0,0.00022466,2]
[388746198,1759345867038,-630.0,0.00022466,2]
[388746199,1759345867049,-500.0,0.000225,2]
[388746200,1759345867061,-150.0,0.000225,2]
[388746201,1759345867070,-1507.30042801,0.00022512,2]
[388746202,1759345867079,-3000.0,0.00022512,2]
[388746203,1759345867089,-10588.35227838,0.00022636,2]
[388746204,1759345867098,-587.0,0.00022662,2]
[388746205,1759345867108,-2000.0,0.00022673,2]
[388746206,1759345867118,-2000.0,0.00022711,2]
[388746207,1759345867128,-2000.0,0.00022711,2]
[388746208,1759345867137,-749.67,0.00022739,2]
[388746209,1759345867147,-613.57,0.00022739,2]
[388746210,1759345867156,-771.43,0.00022739,2]
[388746211,1759345867166,-500.0,0.00022739,2]
[388746212,1759345867175,-500.0,0.00022739,2]
[388746213,1759345867185,-672.22,0.00022739,2]
[388746214,1759345867195,-500.0,0.00022739,2]
[388746215,1759345867204,-901.59,0.00022739,2]
[388746216,1759345867214,-500.0,0.00022739,2]
[388746217,1759345867223,-500.0,0.00022739,2]
[388746218,1759345867233,-890.47,0.00022739,2]
[388746219,1759345867243,-1983.88,0.00022739,2]
[388746220,1759345867253,-535.15,0.00022739,2]
[388746221,1759345867263,-1023.11,0.00022739,2]
[388746222,1759345867275,-500.0,0.00022739,2]
[388746223,1759345867286,-851.24,0.00022739,2]
[388746224,1759345867296,-639.55,0.00022739,2]
[388746225,1759345867305,-900.38,0.00022739,2]
[388746226,1759345867315,-1628.15,0.00022739,2]
[388746227,1759345867324,-217.79,0.00022739,2]
[388746228,1759345867333,-500.0,0.00022739,2]
[388746229,1759345867343,-500.0,0.00022739,2]
[388746230,1759345867352,-505.58,0.00022739,2]
[388746231,1759345867362,-4193.03,0.00022739,2]
[388746232,1759345867371,-500.0,0.00022739,2]
[388746233,1759345867381,-395.86,0.00022739,2]
[388746234,1759345867392,-821.39,0.00022739,2]
[388746235,1759345867402,-500.0,0.00022739,2]
[388746236,1759345867412,-711.82,0.00022739,2]
[388746237,1759345867421,-1383.14,0.00022739,2]
[388746238,1759345867431,-532.13,0.00022739,2]
[388746239,1759345867440,-608.21,0.00022739,2]
[388746240,1759345867450,-792.22,0.00022739,2]
[388746241,1759345867458,-500.0,0.00022739,2]
[388746242,1759345867467,-628.21,0.00022739,2]
[388746243,1759345867477,-582.97,0.00022739,2]
[388746244,1759345867487,-500.0,0.00022739,2]
[388746245,1759345867496,-500.0,0.00022739,2]
[388746246,1759345867506,-2142.58,0.00022739,2]
[388746247,1759345867516,-1256.62,0.00022739,2]
[388746248,1759345867526,-500.0,0.00022739,2]
[388746249,1759345867536,-1512.08,0.00022739,2]
[388746250,1759345867547,-2196.15,0.00022739,2]
[388746251,1759345867556,-1290.67,0.00022739,2]
[388746252,1759345867566,-1119.5,0.00022739,2]
[388746253,1759345867576,-500.0,0.00022739,2]
[388746254,1759345867586,-500.0,0.00022739,2]